Cogmind - Beta 15 @@@ ROGUE MODE // 2025.05.11 @ 12:23:59 Player: Epsilon 11 Result: Destroyed by G-34 Mercenary with Small Laser Performance ------------- Evolutions (0) 0 Regions Visited (1) 200 Robots Destroyed (11) 55 Value Destroyed (212) 212 Prototype IDs (0) 0 Alien Tech Used (0) 0 Bonus (0) 0 TOTAL SCORE: 467 Bonus ------- None Cogmind --------- Core Integrity 0/250 Matter 266/300 Energy 99/100 System Corruption 9% Temperature Cool (6) Movement Rolling (130) Ox2 Location -10/Materials Parts ------- > --- POWER (1) -------- (None) > --- PROPULSION (2) --- Compact Wheel > --- UTILITY (2) ------ High-capacity Storage Unit Propulsion Shielding > --- WEAPON (2) ------- Light Assault Rifle > --- INVENTORY (20) --- Aluminum Leg Aluminum Leg Compact Wheel Compact Wheel Compact Wheel Small Storage Unit Grenade Launcher Peak State ------------ > --- POWER ------------ Ion Engine > --- PROPULSION ------- Compact Wheel Compact Wheel > --- UTILITY ---------- Small Storage Unit Propulsion Shielding > --- WEAPON ----------- EM Pulse Gun Light Assault Rifle > --- INVENTORY -------- Aluminum Leg Aluminum Leg Compact Wheel Compact Wheel Compact Wheel Grenade Launcher [Rating: 7] Favorites ----------- Power Ion Engine Engine Ion Engine Propulsion Compact Wheel Wheel Compact Wheel Utility Small Storage Unit Storage Small Storage Unit Protection Propulsion Shielding Weapon EM Pulse Gun Energy Gun EM Pulse Gun Ballistic Gun Light Assault Rifle Build | -11 -10 ------- Run | Yrd Mat Slots Evolved . | . . Power . | . . Propulsion . | . . Utility . | . . Weapon . | . . Parts Attached 12 | 6 6 Power 2 | 1 1 Engine 2 | 1 1 Core . | . . Reactor . | . . Propulsion 3 | 2 1 Treads . | . . Leg . | . . Wheel 3 | 2 1 Hover . | . . Flight . | . . Utility 3 | 1 2 Device . | . . Storage 2 | 1 1 Processor . | . . Hackware . | . . Protection 1 | . 1 Artifact . | . . Weapon 4 | 2 2 Energy Gun 3 | 2 1 Energy Cannon . | . . Ballistic Gun 1 | . 1 Ballistic Cannon . | . . Launcher . | . . Special Weapon . | . . Impact Weapon . | . . Slashing Weapon . | . . Piercing Weapon . | . . Special Melee Weapon . | . . Unidentified Prototypes . | . . Parts Lost 7 | . 7 Power 2 | . 2 Propulsion 2 | . 2 Utility . | . . Weapon 3 | . 3 Highest Loss Streak 4 | . 4 To Critical Strikes . | . . Average Backups 6 | 1 6 Power . | . . Propulsion 4 | 1 5 Utility . | . . Weapon . | . . Tool/Special . | . . Unused Backups 6 | . 6 Power . | . . Propulsion 5 | . 5 Utility . | . . Weapon 1 | . 1 Tool/Special . | . . Average Slot Usage (%) 89 | . 89 Engine 12 | . 12 Wheel 26 | . 26 Storage 14 | . 14 Protection 8 | . 8 Energy Gun 15 | . 15 Ballistic Gun 10 | . 10 Peak Build Rating 7 | 6 7 Average Rating 6 | 4 6 On Entrance 3 | . 6 Naked Turns . | . . Heaviest Build 49 | 14 49 Greatest Support 32 | 32 32 Greatest Overweight (x) 2 | . 2 Average Overweight (x) . | . . Largest Inventory Capacity 20 | 8 20 Average Capacity 11 | 6 12 Most Carried 8 | 3 8 Average Carried 6 | 2 6 Final Capacity 20 | 8 20 Final Carried 7 | 3 7 Class Distribution -------------------- 100% | Mutant Dominant Class ---------------- Mutant | -10/Materials Resources | -11 -10 ----------- Run | Yrd Mat Matter Collected 309 | 249 60 Remotely . | . . Salvage Created 306 | . 306 Parts 25 | . 25 Haulers Intercepted . | . . Recyclers Shooed . | . . Parts Field Recycled . | . . Retrieved Matter . | . . Parts Self-Destructed . | . . Prevented . | . . Kills | -11 -10 ------- Run | Yrd Mat Combat Hostiles Destroyed 10 | . 10 Guns 9 | . 9 AOE 1 | . 1 Classes Destroyed 3 | . 3 Watcher 1 | . 1 Swarmer 6 | . 6 Grunt 4 | . 4 Best Kill Streak 3 | . 3 Combat Bots Only 3 | . 3 Max Kills in Single Turn 1 | . 1 Gunslinging . | . . Exploded 1 | . 1 Melee . | . . Uniques/NPCs Destroyed . | . . Combat | -11 -10 -------- Run | Yrd Mat Hostile Shots Fired 101 | . 101 Missed 23 | . 23 Hits 78 | . 78 Projectile 78 | . 78 Damage Taken 756 | . 756 Core 259 | . 259 Absorbed by Shields . | . . Redirected to Shielding 3 | . 3 Core Remaining (%) 100 | 100 . Volleys Fired 51 | . 51 Largest 2 | . 2 Hottest 80 | . 80 Shots Fired 84 | . 84 Gun 84 | . 84 Cannon . | . . Launcher . | . . Special . | . . Kinetic 43 | . 43 Thermal . | . . Explosive . | . . Electromagnetic 41 | . 41 Robot Hit Streak 14 | . 14 Robot Miss Streak 3 | . 3 Penetration Max . | . . Secondary Targets 2 | . 2 Max Gunslinging Chain 1 | . 1 Shots Hit Robots 56 | . 56 Core Hits 19 | . 19 Critical Kills . | . . Critical Parts Destroyed . | . . Critical Strikes . | . . Melee Attacks . | . . Impact . | . . Slashing . | . . Piercing . | . . Sneak Attacks . | . . Combat Hostiles . | . . Follow-up Attacks . | . . Damage Inflicted 633 | . 633 Guns 571 | . 571 Cannons . | . . Explosions 62 | . 62 Melee . | . . Ramming . | . . Kinetic 266 | . 266 Thermal 62 | . 62 Explosive . | . . Electromagnetic 305 | . 305 Impact . | . . Slashing . | . . Piercing . | . . Highest Corruption 9 | . 9 Average Corruption 6 | . 6 Corruption Purged . | . . Corruption Blocked . | . . Effects 6 | . 6 Message Errors 3 | . 3 Matter Fused 1 | . 1 Heat Flow Errors 1 | . 1 Energy Discharges 1 | . 1 Overload Shots . | . . Overflow Damage . | . . Projectiles . | . . Explosions . | . . Melee . | . . Knockbacks . | . . Impact . | . . Kinetic . | . . Secondary . | . . Self-Inflicted Damage 29 | . 29 Shots 2 | . 2 Rammed . | . . Targets Rammed . | . . Kicked . | . . Crushed . | . . Highest Temperature 128 | . 128 Average Temperature 35 | . 35 Received Heat Transfer 189 | . 189 Siege Activations . | . . Martial Activations . | . . Shielding Activations . | . . Robots Disrupted . | . . Combat Hostiles . | . . Robots Corrupted . | . . Combat Hostiles . | . . Parts Fried 1 | . 1 Impact Corruptions . | . . Robots Melted . | . . Combat Hostiles . | . . Parts Melted . | . . Heat Transferred 100 | . 100 Parts Sabotaged . | . . Parts Stolen . | . . Parts Stripped . | . . Power Chain Reactions 2 | . 2 Alert | -11 -10 ------- Run | Yrd Mat Maximum Alert Level . | . . Low Security (%) 100 | 100 100 Level 1 . | . . Level 2 . | . . Level 3 . | . . Level 4 . | . . Level 5 . | . . High Security . | . . Max Security . | . . Peak Influence 90 | . 90 Initial . | . . Average 29 | . 32 Influence Increases 275 | . 275 Destroy 0b10 Robot/C 200 | . 200 Destroy 0b10 Robot/NC 5 | . 5 Destroy Leader 22 | . 22 Successful Hack 7 | . 7 Select Force Hacks 30 | . 30 Destroy Structure 11 | . 11 Influence Decreases 255 | . 255 Time Decay 185 | . 185 Lost Part 70 | . 70 Squads Dispatched 2 | . 2 Investigation 1 | . 1 Extermination . | . . Reinforcement 1 | . 1 Assault . | . . Garrison . | . . Intercept . | . . Searches Triggered . | . . Construction Impeded . | . . Haulers Reinforced . | . . Active Scanning Responses . | . . Cargo Convoy Interrupts . | . . Stealth | -11 -10 --------- Run | Yrd Mat Distress Signals . | . . Communications Jammed . | . . Distress Signals . | . . Times Spotted 19 | . 19 Peak Tracking Total 4 | . 4 Tactical Retreats . | . . Traps | -11 -10 ------- Run | Yrd Mat Traps Triggered 5 | . 5 Indirectly . | . . Trap Hack Attempts . | . . Triggered . | . . Disarmed . | . . Reprogrammed . | . . Reused . | . . Traps Extracted . | . . Installed . | . . Triggered . | . . Machines | -11 -10 ---------- Run | Yrd Mat Machines Disabled . | . . Max in Single Turn . | . . Machines Repaired . | . . Machines Dismantled . | . . Machines Sabotaged . | . . Overloaded Fab Kills . | . . Hacking | -11 -10 --------- Run | Yrd Mat Machines Accessed 6 | . 6 Terminals 5 | . 5 Fabricators . | . . Repair Stations . | . . Recycling Units 1 | . 1 Scanalyzers . | . . Garrison Access . | . . Total Hacks 23 | . 23 Successful 11 | . 11 Failed 12 | . 12 Catastrophic . | . . Database Lockouts . | . . Manual 18 | . 18 Terminals 19 | . 19 Fabricators . | . . Repair Stations . | . . Recycling Units 4 | . 4 Scanalyzers . | . . Garrison Access . | . . Terminal Hacks 1 | . 1 Hauler Manifests 1 | . 1 Fabricator Hacks . | . . Repair Station Hacks . | . . Recycling Unit Hacks . | . . Scanalyzer . | . . Garrison Access Hacks . | . . Unauthorized Hacks 10 | . 10 Terminals 9 | . 9 Botnet 5 | . 5 Skim 4 | . 4 Fabricators . | . . Repair Stations . | . . Recycling Units 1 | . 1 Tunnel 1 | . 1 Scanalyzers . | . . Garrison Access . | . . Data Cores Recovered . | . . Used . | . . Hacking Detections 6 | . 6 Full Trace Events . | . . Feedback Events . | . . Feedback Blocked . | . . Robot Schematics Acquired . | . . Robots Built . | . . Authchips . | . . Time . | . . Total Robot Build Rating . | . . Part Schematics Acquired . | . . Parts Built . | . . Authchips . | . . Time . | . . Total Part Build Rating . | . . Parts Repaired . | . . Time . | . . Parts Recycled . | . . Recycled Matter . | . . Retrieved Matter . | . . Retrieved Components . | . . Parts Scanalyzed . | . . Part Schematics Acquired . | . . Parts Damaged . | . . Bothacking | -11 -10 ------------ Run | Yrd Mat Used RIF Installer . | . . Robots Hacked . | . . Non-combat . | . . Combat . | . . Robot Hacks Applied . | . . Relay Couplers Released . | . . Fabnet Peak Effective % . | . . Robots Rewired . | . . Allies Hacked . | . . Hacks Repelled . | . . Allies | -11 -10 -------- Run | Yrd Mat Total Allies . | . . Largest Group . | . . Highest-Rated Group . | . . Highest-Rated Ally . | . . Total Orders . | . . Ally Attacks . | . . Total Damage . | . . Kills . | . . Allies Corrupted . | . . Allies Melted . | . . Intel | -11 -10 ------- Run | Yrd Mat Active Infowar (turns) . | . . Robot Analysis Total . | . . Derelict Logs Recovered . | . . Drone Launches . | . . Drone Recoveries . | . . Exploration | -11 -10 ------------- Run | Yrd Mat Turns Passed 543 | 56 487 Spaces Moved 357 | 46 311 Core 3 | 3 . Treads . | . . Legs . | . . Wheels 354 | 43 311 Hover . | . . Flight . | . . Fastest Speed 50 | 50 100 Average Speed 103 | 96 103 Slowest Speed 130 | 100 130 Overloaded Moves . | . . Propulsion Burnouts . | . . Robots Hopped . | . . Potential Cave-ins . | . . Cave-ins Triggered . | . . Exploration Rate (%) 33 | 4 62 Regions Visited 1 Branch Regions . Pre-discovered Areas 1 | . 1 Known Exits Taken . | . . Unknown Exits Taken 1 | 1 . Scrap Searched . | . . Spaces Dug . | . . Terrain Destroyed 9 | . 9 Melee . | . . Projectile . | . . AOE 9 | . 9 Terrain Rammed . | . . Walls Destroyed . | . . Machines Disabled . | . . Actions | -11 -10 --------- Run | Yrd Mat Total 453 | 54 399 Wait 25 | . 25 Move 356 | 45 311 Hop . | . . Pick Up 9 | 3 6 Fast Attach 8 | 6 2 Attach 3 | . 3 Detach . | . . Swap 1 | . 1 Drop . | . . Fire 51 | . 51 Melee . | . . Ram . | . . Kick . | . . Crush . | . . Escape Stasis . | . . Rewire . | . . Trap . | . . Miscellaneous . | . . Route ------- -11/Scrapyard -10/Materials (discovered 3 exits: [*Mat x2] / [*Min]) History --------- Turn | Location | Event 27 | -11/Scrapyard | Discovered new exit (range 15) 57 | -11/Scrapyard | Entered Materials 236 | -10/Materials | Lost 4 parts (1p1n2w) 296 | -10/Materials | Discovered new exit (range 14) 310 | -10/Materials | Build established: Mutant 341 | -10/Materials | Discovered new exit (range 7) 428 | -10/Materials | Core integrity fell below 50% 504 | -10/Materials | Discovered new exit (range 13) 528 | -10/Materials | Core integrity fell below 20% 544 | -10/Materials | Destroyed by G-34 Mercenary with Small Laser Last Messages --------------- 00490_ EM Pulse Gun destroyed. 00494_ Ion Engine destroyed. 00496_ M-13 Machinist repairs W-16 Scout Hover Unit. 00499_ G-34 Mercenary destroyed. 00504_ EXIT=FOUND 00507_ JIS VR WEUK3WJGC/P#SDHUE,M:BSBGHD84 00512_ Connecting with Terminal... >>Trojan(Botnet) Trojan loaded successfully. Testing... Terminal linked with 3 systems. Awaiting botnet instructions. >>Trojan(Skim) Trojan loaded successfully. Testing... Terminal linked with 3 systems. Please expand to 1 more system! 00523_ Com. Wheel destroyed. 00526_ BOU,M1VCML6YW4OC B%S%2QFACXI0TYC=2VQ 00541_ G-34 Mercenary destroyed. Map ----- +----------------------------------------------------+ | ????????????????????????????????????# | | ????????????????????????????????????# | | ????????????????????????????????????# | | ????????????????????????????????????# | | ????????????????????????????????????# | | ????????????????????????????????????# | | ????????????????????????????????????# | | ???????????????????????????????????? | | ??????????????? ????????????????????##+ | | ??????????????? ###???????????????????? | | ??????????????# #???########????????? | | ??????????????#g ???+ #????????? | | ??????????????# #???# #????????? | | ??????????????# #???# """ #????????? | | ??????????????#g #???# """ !#????????? | | ??????????????# #???# """ #????????? | | ??????????##### #???# % #???###### | | ??????????# #???####+####### | | ??????????# < ###### !== | | ??????????# < | | ????##+####### | | ????# # """ m """ !##" | | ????# # "T" """ ##" |"! | | ????# # """ ##""""" | | ????# =+% ####### | | ????# #@ == #?????? | | ????# # == ###### ##?????? | | ????# # = #????# #??????? | | ????# # #????# #??????? | | ????# # #????# #??????? | | ????########## #????#+#??????? | | ?????????????# #?????????????? | | ?????????????# """ #?????????????? | | ?????????????# """ #?????????????? | | ????????????? """ #?????????????? | | ????????????# ? +?????????????? | | ????????????# ? #?????????????? | | ????????????? ##?#######?????????????? | | ????????????? ???????????????????????? | | ?????????????? ???????????????????????? | | ?????????????? ???????????????????????? | | ??????????????????????????????????????? | | ??????????????????????????????????????? | | ??????????????????????????????????????? | | ??????????????????????????????????????? | | ??????????????????????????????????????? | | ??????????????????????????????????????? | | ??????????????????????????????????????? | | ??????????????????????????????????????? | | ??????????????????????????????????????? | +----------------------------------------------------+ Best States ------------- Heat Dissipation 25 Energy Generation 10 Energy Capacity 250 Matter Stores 300 Matter Capacity 300 Sight Range 16 Terrain Scan Density 10 Propulsion Shielding 33 Evasion (%) 40 Item Schematics ----------------- None Robot Schematics ------------------ None Fabricated ------------ Nothing Repaired ---------- Nothing Alien Tech Used ----------------- None Achievements -------------- None Challenges ------------ None Game ------ Seed DisassembledDataPenetrator Manual? 0 Play Time 00:09:17 Cumulative 217.1 hours Start 2025.05.11 @ 12:15:30 End 2025.05.11 @ 12:23:59 Sessions 1 Manual Loads 0 Difficulty Rogue Special Mode None Game No. 96 Rogue 53 Adventurer 43 Explorer 0 Win Type - Total 6 Types 4/0/1/0/0/0/0/1/0/0 Lore% 67 Gallery% 65 Achievement% 61 Wizard Run 0 Options --------- Layout 0 ASCII 0 Keyboard 0 Movement Mouse Keybinds 0 Fullscreen 1 Font 24/Smallcaps Map View 76x50 Zoom Use 0% Tactical HUD 1 Map Filters NONE Filters NONE Steam 1 RUN: 806e8966-e7f0-4677-a22f-d7b9aad0d4cf